[Event "7th Paul Keres Memorial Festival 2026 Classic A"]
[Site "ESTONIA Resort Hotel & Spa conference center, EE"]
[Date "2026.07.30"]
[Round "6"]
[White "Grave, Jacob Templen"]
[Black "Povilaitis, Tomas"]
[Result "0-1"]
[Board "8"]
[TimeControl "5400+30"]
[WhiteFideId "1542656"]
[BlackFideId "12811700"]
[WhiteElo "2392"]
[BlackElo "2150"]
[WhiteTitle "FM"]
[WhiteClock "0:00:56"]
[BlackClock "0:08:27"]
[Variant "Standard"]
[EndDate "2026.07.30"]
[EndTime "17:01:03"]

1. d4 {[%clk 1:29:28]}  d5 {[%clk 1:30:57]} 2. c4 {[%clk 1:29:42]}  c6 {[%clk 1:31:22]} 3. Nc3 {[%clk 1:27:11]}  Nf6 {[%clk 1:31:14]}
4. e3 {[%clk 1:24:20]}  g6 {[%clk 1:23:36]} 5. Nf3 {[%clk 1:22:50]}  Bg7 {[%clk 1:24:02]} 6. Bd3 {[%clk 1:18:54]}  O-O {[%clk 1:24:08]}
7. O-O {[%clk 1:19:51]}  Bg4 {[%clk 1:23:12]} 8. h3 {[%clk 1:09:55]}  Bxf3 {[%clk 1:23:35]} 9. Qxf3 {[%clk 1:10:12]}  e6 {[%clk 1:24:02]}
10. b4 {[%clk 0:58:55]}  Nbd7 {[%clk 1:17:23]} 11. Rb1 {[%clk 0:53:22]}  dxc4 {[%clk 1:11:45]} 12. Bxc4 {[%clk 0:53:42]}  e5 {[%clk 1:12:09]}
13. Bb3 {[%clk 0:46:06]}  exd4 {[%clk 1:11:49]} 14. exd4 {[%clk 0:46:29]}  Nb6 {[%clk 1:11:22]} 15. Rd1 {[%clk 0:45:49]}  Nfd5 {[%clk 1:11:07]}
16. a3 {[%clk 0:41:37]}  Nxc3 {[%clk 1:10:26]} 17. Qxc3 {[%clk 0:42:03]}  Nd5 {[%clk 1:10:52]} 18. Qf3 {[%clk 0:40:33]}  a6 {[%clk 1:02:09]}
19. g3 {[%clk 0:37:30]}  Qd7 {[%clk 0:54:37]} 20. Kg2 {[%clk 0:36:59]}  Rfe8 {[%clk 0:54:37]} 21. h4 {[%clk 0:35:28]}  h5 {[%clk 0:52:57]}
22. Bg5 {[%clk 0:34:25]}  Re6 {[%clk 0:50:36]} 23. Rbc1 {[%clk 0:33:06]}  Rd6 {[%clk 0:39:26]} 24. Rc5 {[%clk 0:24:17]}  Re8 {[%clk 0:31:07]}
25. Bf4 {[%clk 0:20:27]}  Nxf4+ {[%clk 0:30:34]} 26. Qxf4 {[%clk 0:20:50]}  Rf6 {[%clk 0:26:36]} 27. Qd2 {[%clk 0:18:48]}  Qg4 {[%clk 0:25:45]}
28. Qd3 {[%clk 0:18:06]}  Qe2 {[%clk 0:19:48]} 29. Qxe2 {[%clk 0:18:03]}  Rxe2 {[%clk 0:20:14]} 30. Rf1 {[%clk 0:18:12]}  Rb2 {[%clk 0:19:47]}
31. Bc4 {[%clk 0:11:52]}  Rd6 {[%clk 0:20:13]} 32. g4 {[%clk 0:01:13]}  Bxd4 {[%clk 0:18:51]} 33. Ra5 {[%clk 0:00:34]}  b5 {[%clk 0:19:15]}
34. Bd3 {[%clk 0:00:57]}  hxg4 {[%clk 0:18:20]} 35. Rxa6 {[%clk 0:01:14]}  Rf6 {[%clk 0:18:11]} 36. Be4 {[%clk 0:01:10]}  Bxf2 {[%clk 0:18:08]}
37. Rxc6 {[%clk 0:00:48]}  Bc5+ {[%clk 0:14:56]} 38. Kg3 {[%clk 0:01:08]}  Bd6+ {[%clk 0:14:49]} 39. Rxd6 {[%clk 0:00:44]}  Rxd6 {[%clk 0:15:09]}
40. h5 {[%clk 0:00:47]}  f5 {[%clk 0:13:48]} 41. Bb7 {[%clk 0:00:44]}  Rb3+ {[%clk 0:12:54]} 42. Kf4 {[%clk 0:01:02]}  gxh5 {[%clk 0:13:07]}
43. Ke5 {[%clk 0:00:54]}  Rbd3 {[%clk 0:12:28]} 44. Rxf5 {[%clk 0:01:15]}  Rd7 {[%clk 0:10:29]} 45. Bc6 {[%clk 0:00:39]}  Re7+ {[%clk 0:10:00]}
46. Kf4 {[%clk 0:00:58]}  Rf7 {[%clk 0:10:19]} 47. Rxf7 {[%clk 0:01:05]}  Kxf7 {[%clk 0:10:44]} 48. Kg5 {[%clk 0:01:28]}  Rh3 {[%clk 0:08:02]}
49. Kf4 {[%clk 0:00:58]}  Kf6 {[%clk 0:08:04]} 50. Bxb5 {[%clk 0:01:05]}  Rf3+ {[%clk 0:08:29]} 51. Ke4 {[%clk 0:01:29]}  Rxa3 {[%clk 0:08:53]}
52. Bc6 {[%clk 0:00:39]}  Rb3 {[%clk 0:08:27]} 53. b5 {[%clk 0:00:56]}  Kg5 {[%clk 0:08:51]} 0-1

[Event "7th Paul Keres Memorial Festival 2026 Classic A"]
[Site "ESTONIA Resort Hotel & Spa conference center, EE"]
[Date "2026.07.30"]
[Round "6"]
[White "Kreken, Eivind Grunt"]
[Black "Beniosev, Daniel"]
[Result "1-0"]
[Board "9"]
[TimeControl "5400+30"]
[WhiteFideId "1532359"]
[BlackFideId "11632674"]
[WhiteElo "2335"]
[BlackElo "1954"]
[WhiteTitle "FM"]
[BlackTitle "CM"]
[WhiteClock "0:08:22"]
[BlackClock "0:01:03"]
[Variant "Standard"]
[EndDate "2026.07.30"]
[EndTime "16:45:21"]

1. e4 {[%clk 1:30:50]}  c5 {[%clk 1:30:36]} 2. Nf3 {[%clk 1:30:50]}  e6 {[%clk 1:30:22]} 3. d4 {[%clk 1:28:58]}  cxd4 {[%clk 1:30:05]}
4. Nxd4 {[%clk 1:29:21]}  Nc6 {[%clk 1:29:45]} 5. Nc3 {[%clk 1:29:40]}  Qc7 {[%clk 1:29:19]} 6. Be3 {[%clk 1:29:45]}  a6 {[%clk 1:28:43]}
7. Qf3 {[%clk 1:28:34]}  Nf6 {[%clk 1:27:57]} 8. O-O-O {[%clk 1:28:36]}  Ne5 {[%clk 1:27:19]} 9. Qg3 {[%clk 1:28:51]}  b5 {[%clk 1:27:13]}
10. a3 {[%clk 1:28:35]}  Bb7 {[%clk 1:21:39]} 11. Bf4 {[%clk 1:28:35]}  d6 {[%clk 1:14:24]} 12. Ncxb5 {[%clk 1:28:02]}  axb5 {[%clk 1:12:52]}
13. Bxb5+ {[%clk 1:27:38]}  Ned7 {[%clk 0:50:33]} 14. e5 {[%clk 1:27:33]}  Ne4 {[%clk 0:45:46]} 15. exd6 {[%clk 1:27:03]}  Qb6 {[%clk 0:35:23]}
16. Qb3 {[%clk 1:15:14]}  Kd8 {[%clk 0:28:53]} 17. Rhe1 {[%clk 0:57:25]}  Ndc5 {[%clk 0:19:52]} 18. Qe3 {[%clk 0:52:10]}  Nxd6 {[%clk 0:14:49]}
19. Nf5 {[%clk 0:31:04]}  Qxb5 {[%clk 0:07:51]} 20. Bxd6 {[%clk 0:19:12]}  exf5 {[%clk 0:01:31]} 21. Bxf8+ {[%clk 0:16:28]}  Nd7 {[%clk 0:01:44]}
22. Qe7+ {[%clk 0:15:10]}  Kc8 {[%clk 0:02:01]} 23. Bxg7 {[%clk 0:14:06]}  Rd8 {[%clk 0:00:34]} 24. Bf6 {[%clk 0:13:00]}  Rg8 {[%clk 0:00:39]}
25. Re5 {[%clk 0:11:13]}  Qc6 {[%clk 0:00:39]} 26. Rd6 {[%clk 0:07:39]}  Qc7 {[%clk 0:00:33]} 27. Qe8+ {[%clk 0:07:38]}  Rxe8 {[%clk 0:00:33]}
28. Rxe8+ {[%clk 0:08:01]}  Qd8 {[%clk 0:01:03]} 29. Rxd8+ {[%clk 0:08:22]} 1-0

[Event "7th Paul Keres Memorial Festival 2026 Classic A"]
[Site "ESTONIA Resort Hotel & Spa conference center, EE"]
[Date "2026.07.30"]
[Round "6"]
[White "Praczukowski, Stanislaw"]
[Black "Krivonosov, Oleg"]
[Result "1/2-1/2"]
[Board "10"]
[TimeControl "5400+30"]
[WhiteFideId "1182730"]
[BlackFideId "11600349"]
[WhiteElo "2159"]
[BlackElo "2290"]
[BlackTitle "IM"]
[WhiteClock "1:28:00"]
[BlackClock "1:33:17"]
[Variant "Standard"]
[EndDate "2026.07.30"]
[EndTime "13:28:44"]

1. e4 {[%clk 1:30:58]}  e5 {[%clk 1:30:50]} 2. Nf3 {[%clk 1:31:21]}  Nc6 {[%clk 1:31:12]} 3. Bb5 {[%clk 1:31:41]}  Nf6 {[%clk 1:31:30]}
4. O-O {[%clk 1:31:55]}  Nxe4 {[%clk 1:31:48]} 5. Re1 {[%clk 1:32:06]}  Nd6 {[%clk 1:32:02]} 6. a4 {[%clk 1:32:08]}  Be7 {[%clk 1:32:14]}
7. Nc3 {[%clk 1:31:47]}  O-O {[%clk 1:31:56]} 8. d4 {[%clk 1:30:43]}  e4 {[%clk 1:32:17]} 9. Nxe4 {[%clk 1:31:01]}  Nxe4 {[%clk 1:32:41]}
10. Rxe4 {[%clk 1:31:16]}  a6 {[%clk 1:33:08]} 11. Bf1 {[%clk 1:30:07]}  d5 {[%clk 1:33:17]} 12. Re1 {[%clk 1:29:32]}  Bf5 {[%clk 1:33:17]}
13. c3 {[%clk 1:28:00]} 1/2-1/2

[Event "7th Paul Keres Memorial Festival 2026 Classic A"]
[Site "ESTONIA Resort Hotel & Spa conference center, EE"]
[Date "2026.07.31"]
[Round "7"]
[White "Harikrishnan.A.Ra"]
[Black "Zeng, Chongsheng"]
[Result "0-1"]
[Board "1"]
[TimeControl "5400+30"]
[WhiteFideId "5081483"]
[BlackFideId "8603847"]
[WhiteElo "2519"]
[BlackElo "2565"]
[WhiteTitle "GM"]
[BlackTitle "GM"]
[WhiteClock "0:00:45"]
[BlackClock "0:03:56"]
[Variant "Standard"]
[EndDate "2026.07.31"]
[EndTime "11:16:02"]

1. Nf3 {[%clk 1:29:25]}  d5 {[%clk 1:29:29]} 2. g3 {[%clk 1:28:40]}  Nd7 {[%clk 1:29:40]} 3. d4 {[%clk 1:28:57]}  e6 {[%clk 1:30:04]}
4. Bg2 {[%clk 1:28:48]}  b5 {[%clk 1:30:28]} 5. e4 {[%clk 1:23:01]}  dxe4 {[%clk 1:27:41]} 6. Ng5 {[%clk 1:22:42]}  Bb7 {[%clk 1:26:06]}
7. Nxe4 {[%clk 1:22:36]}  Qc8 {[%clk 1:22:48]} 8. O-O {[%clk 1:08:47]}  Ngf6 {[%clk 1:22:27]} 9. Nxf6+ {[%clk 1:04:15]}  Nxf6 {[%clk 1:22:47]}
10. Bg5 {[%clk 1:04:39]}  Bxg2 {[%clk 1:04:24]} 11. Kxg2 {[%clk 1:05:06]}  Nd5 {[%clk 1:01:34]} 12. Qf3 {[%clk 1:01:10]}  h6 {[%clk 0:58:49]}
13. Bd2 {[%clk 0:58:34]}  Be7 {[%clk 0:57:49]} 14. Nc3 {[%clk 0:56:23]}  c6 {[%clk 0:58:06]} 15. Nxd5 {[%clk 0:43:46]}  cxd5 {[%clk 0:58:28]}
16. c3 {[%clk 0:44:02]}  O-O {[%clk 0:54:25]} 17. a4 {[%clk 0:41:52]}  a6 {[%clk 0:53:44]} 18. b3 {[%clk 0:31:41]}  Qc6 {[%clk 0:51:55]}
19. Qg4 {[%clk 0:27:59]}  Kh7 {[%clk 0:49:45]} 20. Qf3 {[%clk 0:28:05]}  Kg8 {[%clk 0:36:36]} 21. Qg4 {[%clk 0:28:22]}  bxa4 {[%clk 0:33:50]}
22. Rxa4 {[%clk 0:25:54]}  Rfb8 {[%clk 0:33:39]} 23. Bxh6 {[%clk 0:21:11]}  Bf6 {[%clk 0:33:41]} 24. Bd2 {[%clk 0:16:19]}  Rxb3 {[%clk 0:34:02]}
25. Rfa1 {[%clk 0:16:31]}  Rb2 {[%clk 0:30:01]} 26. Bg5 {[%clk 0:14:58]}  Bxg5 {[%clk 0:27:43]} 27. Qxg5 {[%clk 0:15:26]}  Rb3 {[%clk 0:24:20]}
28. h4 {[%clk 0:05:57]}  Qxc3 {[%clk 0:24:15]} 29. Qf4 {[%clk 0:05:30]}  Qd3 {[%clk 0:18:35]} 30. h5 {[%clk 0:05:45]}  Rb1 {[%clk 0:17:53]}
31. Rxb1 {[%clk 0:06:11]}  Qxb1 {[%clk 0:18:21]} 32. h6 {[%clk 0:06:23]}  gxh6 {[%clk 0:14:41]} 33. Qxh6 {[%clk 0:06:51]}  Qe4+ {[%clk 0:15:09]}
34. Kh2 {[%clk 0:03:31]}  Qc2 {[%clk 0:15:10]} 35. Qg5+ {[%clk 0:02:23]}  Kf8 {[%clk 0:15:06]} 36. Qh6+ {[%clk 0:02:38]}  Ke7 {[%clk 0:15:11]}
37. Rb4 {[%clk 0:01:56]}  Qxf2+ {[%clk 0:15:25]} 38. Kh3 {[%clk 0:02:25]}  Qf1+ {[%clk 0:14:58]} 39. Kh2 {[%clk 0:02:51]}  Qf2+ {[%clk 0:08:07]}
40. Kh3 {[%clk 0:03:20]}  Qf5+ {[%clk 0:07:16]} 41. Kh2 {[%clk 0:02:23]}  Qc2+ {[%clk 0:04:43]} 42. Kh3 {[%clk 0:02:29]}  Rc8 {[%clk 0:04:56]}
43. Rb7+ {[%clk 0:01:51]}  Rc7 {[%clk 0:05:14]} 44. Qg5+ {[%clk 0:00:53]}  Kd7 {[%clk 0:05:41]} 45. Rxc7+ {[%clk 0:01:20]}  Qxc7 {[%clk 0:06:02]}
46. Qd2 {[%clk 0:01:12]}  a5 {[%clk 0:05:59]} 47. Qb2 {[%clk 0:00:48]}  Ke7 {[%clk 0:05:33]} 48. Qb5 {[%clk 0:00:59]}  Kf8 {[%clk 0:05:46]}
49. Qb3 {[%clk 0:01:06]}  Kg7 {[%clk 0:05:46]} 50. Qd1 {[%clk 0:01:25]}  Qd8 {[%clk 0:05:15]} 51. Qg4+ {[%clk 0:01:26]}  Kf8 {[%clk 0:05:38]}
52. Qf3 {[%clk 0:01:24]}  Qg5 {[%clk 0:04:03]} 53. Qd1 {[%clk 0:00:37]}  Kg7 {[%clk 0:04:15]} 54. Qa1 {[%clk 0:00:53]}  Qe3 {[%clk 0:03:39]}
55. Qd1 {[%clk 0:01:07]}  Qe4 {[%clk 0:03:15]} 56. Kh2 {[%clk 0:01:17]}  a4 {[%clk 0:02:41]} 57. Qxa4 {[%clk 0:01:24]}  e5 {[%clk 0:03:10]}
58. Qd7 {[%clk 0:01:25]}  exd4 {[%clk 0:02:45]} 59. Qd8 {[%clk 0:01:11]}  Qe2+ {[%clk 0:02:56]} 60. Kg1 {[%clk 0:01:04]}  Qe3+ {[%clk 0:02:53]}
61. Kg2 {[%clk 0:01:06]}  d3 {[%clk 0:02:43]} 62. Qxd5 {[%clk 0:00:46]}  d2 {[%clk 0:03:07]} 63. Qh5 {[%clk 0:00:47]}  Qe4+ {[%clk 0:03:32]}
64. Kh2 {[%clk 0:00:45]}  Qh7 {[%clk 0:03:56]} 0-1

[Event "7th Paul Keres Memorial Festival 2026 Classic A"]
[Site "ESTONIA Resort Hotel & Spa conference center, EE"]
[Date "2026.07.31"]
[Round "7"]
[White "Kazakouski, Valery"]
[Black "Ternault, Mathieu"]
[Result "1-0"]
[Board "2"]
[TimeControl "5400+30"]
[WhiteFideId "13507443"]
[BlackFideId "20641532"]
[WhiteElo "2594"]
[BlackElo "2281"]
[WhiteTitle "GM"]
[BlackTitle "FM"]
[WhiteClock "0:44:18"]
[BlackClock "0:01:10"]
[Variant "Standard"]
[EndDate "2026.07.31"]
[EndTime "10:22:06"]

1. d4 {[%clk 1:29:17]}  e6 {[%clk 1:28:12]} 2. c4 {[%clk 1:29:39]}  Nf6 {[%clk 1:28:10]} 3. Nc3 {[%clk 1:30:03]}  Bb4 {[%clk 1:28:18]}
4. e3 {[%clk 1:30:27]}  b6 {[%clk 1:27:00]} 5. Nge2 {[%clk 1:30:35]}  Ba6 {[%clk 1:24:30]} 6. Ng3 {[%clk 1:30:48]}  Bxc3+ {[%clk 1:21:06]}
7. bxc3 {[%clk 1:31:10]}  d5 {[%clk 1:21:10]} 8. cxd5 {[%clk 1:31:32]}  Bxf1 {[%clk 1:20:22]} 9. Rxf1 {[%clk 1:31:54]}  Qxd5 {[%clk 1:16:21]}
10. f3 {[%clk 1:32:13]}  Nc6 {[%clk 1:15:36]} 11. e4 {[%clk 1:28:56]}  Qc4 {[%clk 1:11:05]} 12. Qb3 {[%clk 1:29:11]}  Na5 {[%clk 1:08:30]}
13. Qxc4 {[%clk 1:29:32]}  Nxc4 {[%clk 1:08:58]} 14. Ke2 {[%clk 1:29:52]}  Kd7 {[%clk 1:06:58]} 15. Nh1 {[%clk 1:25:53]}  Kc6 {[%clk 0:56:28]}
16. Nf2 {[%clk 1:25:03]}  a6 {[%clk 0:50:41]} 17. Nd3 {[%clk 1:25:10]}  Nd7 {[%clk 0:47:39]} 18. a4 {[%clk 1:19:47]}  Rhe8 {[%clk 0:39:54]}
19. g4 {[%clk 1:12:59]}  Kb7 {[%clk 0:36:56]} 20. h4 {[%clk 1:08:58]}  Rac8 {[%clk 0:36:47]} 21. Rb1 {[%clk 1:04:47]}  c5 {[%clk 0:32:33]}
22. Rd1 {[%clk 1:04:33]}  cxd4 {[%clk 0:29:29]} 23. cxd4 {[%clk 1:04:55]}  Na5 {[%clk 0:24:26]} 24. Be3 {[%clk 1:03:27]}  Rc2+ {[%clk 0:22:50]}
25. Rd2 {[%clk 1:03:49]}  Rxd2+ {[%clk 0:22:46]} 26. Bxd2 {[%clk 1:04:12]}  Nc4 {[%clk 0:21:04]} 27. Bc3 {[%clk 1:02:24]}  Rc8 {[%clk 0:19:47]}
28. Nf4 {[%clk 0:59:17]}  Nce5 {[%clk 0:16:47]} 29. Rb3 {[%clk 0:57:10]}  Ng6 {[%clk 0:14:24]} 30. Ng2 {[%clk 0:52:20]}  Ne7 {[%clk 0:13:06]}
31. Ne3 {[%clk 0:49:36]}  h5 {[%clk 0:09:26]} 32. gxh5 {[%clk 0:48:18]}  Rh8 {[%clk 0:08:19]} 33. Nc4 {[%clk 0:47:55]}  Rxh5 {[%clk 0:03:16]}
34. Nd6+ {[%clk 0:46:17]}  Kc7 {[%clk 0:03:05]} 35. Nxf7 {[%clk 0:46:30]}  Nc6 {[%clk 0:02:13]} 36. Ng5 {[%clk 0:44:36]}  Kd6 {[%clk 0:01:16]}
37. Bb2 {[%clk 0:44:33]}  e5 {[%clk 0:00:37]} 38. Ba3+ {[%clk 0:42:00]}  Kc7 {[%clk 0:01:05]} 39. Ne6+ {[%clk 0:42:22]}  Kb7 {[%clk 0:01:04]}
40. d5 {[%clk 0:42:46]}  Nd4+ {[%clk 0:00:46]} 41. Nxd4 {[%clk 0:43:09]}  exd4 {[%clk 0:01:13]} 42. Kd3 {[%clk 0:42:46]}  Rxh4 {[%clk 0:01:26]}
43. Kxd4 {[%clk 0:43:10]}  Rh1 {[%clk 0:01:01]} 44. Bd6 {[%clk 0:42:22]}  Ra1 {[%clk 0:00:39]} 45. Rc3 {[%clk 0:42:37]}  Rxa4+ {[%clk 0:00:35]}
46. Ke3 {[%clk 0:42:58]}  Nf6 {[%clk 0:00:32]} 47. Rc7+ {[%clk 0:43:16]}  Ka8 {[%clk 0:01:01]} 48. Rxg7 {[%clk 0:43:23]}  Rc4 {[%clk 0:00:33]}
49. Be5 {[%clk 0:43:31]}  Ne8 {[%clk 0:00:57]} 50. Re7 {[%clk 0:43:54]}  Rc8 {[%clk 0:01:10]} 51. d6 {[%clk 0:44:18]} 1-0

[Event "7th Paul Keres Memorial Festival 2026 Classic A"]
[Site "ESTONIA Resort Hotel & Spa conference center, EE"]
[Date "2026.07.31"]
[Round "7"]
[White "Kirk, Ezra"]
[Black "Laurusas, Tomas"]
[Result "1/2-1/2"]
[Board "3"]
[TimeControl "5400+30"]
[WhiteFideId "600067"]
[BlackFideId "12803731"]
[WhiteElo "2378"]
[BlackElo "2511"]
[WhiteTitle "IM"]
[BlackTitle "GM"]
[WhiteClock "0:41:37"]
[BlackClock "0:21:05"]
[Variant "Standard"]
[EndDate "2026.07.31"]
[EndTime "09:38:00"]

1. e4 {[%clk 1:29:33]}  e5 {[%clk 1:26:54]} 2. Nf3 {[%clk 1:28:53]}  Nf6 {[%clk 1:26:21]} 3. Nc3 {[%clk 1:28:55]}  Nc6 {[%clk 1:26:16]}
4. Bb5 {[%clk 1:28:56]}  Bb4 {[%clk 1:26:37]} 5. O-O {[%clk 1:27:26]}  O-O {[%clk 1:25:40]} 6. d3 {[%clk 1:27:44]}  d6 {[%clk 1:20:06]}
7. Ne2 {[%clk 1:27:09]}  Ne7 {[%clk 1:19:21]} 8. c3 {[%clk 1:27:18]}  Ba5 {[%clk 1:19:46]} 9. Ng3 {[%clk 1:27:22]}  Ng6 {[%clk 1:19:36]}
10. d4 {[%clk 1:26:56]}  c6 {[%clk 1:18:21]} 11. Bd3 {[%clk 1:26:49]}  Re8 {[%clk 1:18:17]} 12. Re1 {[%clk 1:15:40]}  Bb6 {[%clk 1:01:52]}
13. h3 {[%clk 1:13:29]}  Be6 {[%clk 0:57:47]} 14. Be3 {[%clk 1:11:54]}  Rc8 {[%clk 0:40:34]} 15. Qd2 {[%clk 1:07:34]}  Qe7 {[%clk 0:38:05]}
16. a4 {[%clk 0:58:07]}  Bd8 {[%clk 0:35:52]} 17. Bc2 {[%clk 0:53:16]}  Qc7 {[%clk 0:22:41]} 18. a5 {[%clk 0:48:20]}  c5 {[%clk 0:20:37]}
19. d5 {[%clk 0:41:37]}  Bd7 {[%clk 0:21:05]} 1/2-1/2

[Event "7th Paul Keres Memorial Festival 2026 Classic A"]
[Site "ESTONIA Resort Hotel & Spa conference center, EE"]
[Date "2026.07.31"]
[Round "7"]
[White "Maltsevskaya, Aleksandra"]
[Black "Keinanen, Toivo"]
[Result "1/2-1/2"]
[Board "4"]
[TimeControl "5400+30"]
[WhiteFideId "24174041"]
[BlackFideId "509825"]
[WhiteElo "2360"]
[BlackElo "2495"]
[WhiteTitle "IM"]
[BlackTitle "IM"]
[WhiteClock "1:01:08"]
[BlackClock "0:57:08"]
[Variant "Standard"]
[EndDate "2026.07.31"]
[EndTime "08:49:02"]

1. d4 {[%clk 1:30:39]}  d5 {[%clk 1:30:03]} 2. Nf3 {[%clk 1:30:59]}  Nf6 {[%clk 1:30:18]} 3. g3 {[%clk 1:31:20]}  b6 {[%clk 1:26:57]}
4. Bg2 {[%clk 1:31:41]}  Bb7 {[%clk 1:27:24]} 5. Ne5 {[%clk 1:30:59]}  e6 {[%clk 1:26:03]} 6. c4 {[%clk 1:31:19]}  Be7 {[%clk 1:24:34]}
7. Qa4+ {[%clk 1:31:02]}  c6 {[%clk 1:23:42]} 8. cxd5 {[%clk 1:28:42]}  exd5 {[%clk 1:24:02]} 9. Nc3 {[%clk 1:28:41]}  O-O {[%clk 1:23:30]}
10. O-O {[%clk 1:28:42]}  Nfd7 {[%clk 1:18:38]} 11. Nxd7 {[%clk 1:20:24]}  Nxd7 {[%clk 1:18:43]} 12. e4 {[%clk 1:15:35]}  dxe4 {[%clk 1:18:42]}
13. Nxe4 {[%clk 1:15:54]}  Nf6 {[%clk 1:07:31]} 14. Nxf6+ {[%clk 1:15:21]}  Bxf6 {[%clk 1:08:00]} 15. Be3 {[%clk 1:15:40]}  Qd7 {[%clk 1:08:01]}
16. Rac1 {[%clk 1:12:17]}  b5 {[%clk 1:07:44]} 17. Qa5 {[%clk 1:01:53]}  Bd8 {[%clk 1:01:02]} 18. Qc3 {[%clk 1:02:06]}  Rc8 {[%clk 1:01:25]}
19. b4 {[%clk 1:02:05]}  Bb6 {[%clk 0:59:37]} 20. Rfd1 {[%clk 1:01:51]}  Rfd8 {[%clk 0:58:53]} 21. Qb3 {[%clk 1:01:08]}  Qe7 {[%clk 0:57:08]} 1/2-1/2

[Event "7th Paul Keres Memorial Festival 2026 Classic A"]
[Site "ESTONIA Resort Hotel & Spa conference center, EE"]
[Date "2026.07.31"]
[Round "7"]
[White "Haitin, Ilja"]
[Black "Kreken, Eivind Grunt"]
[Result "0-1"]
[Board "5"]
[TimeControl "5400+30"]
[WhiteFideId "4501764"]
[BlackFideId "1532359"]
[WhiteElo "2273"]
[BlackElo "2335"]
[WhiteTitle "FM"]
[BlackTitle "FM"]
[WhiteClock "0:00:43"]
[BlackClock "0:09:52"]
[Variant "Standard"]
[EndDate "2026.07.31"]
[EndTime "10:45:06"]

1. e4 {[%clk 1:26:42]}  c5 {[%clk 1:30:39]} 2. Nf3 {[%clk 1:27:07]}  Nc6 {[%clk 1:30:35]} 3. Bb5 {[%clk 1:27:20]}  Qb6 {[%clk 1:28:36]}
4. Bxc6 {[%clk 1:24:30]}  Qxc6 {[%clk 1:28:32]} 5. Nc3 {[%clk 1:24:48]}  e6 {[%clk 1:27:10]} 6. d4 {[%clk 1:24:57]}  cxd4 {[%clk 1:25:02]}
7. Nxd4 {[%clk 1:24:55]}  Qc7 {[%clk 1:23:33]} 8. Be3 {[%clk 1:10:13]}  a6 {[%clk 1:20:02]} 9. O-O {[%clk 0:49:48]}  b5 {[%clk 1:11:28]}
10. a3 {[%clk 0:38:34]}  Bb7 {[%clk 1:09:57]} 11. f4 {[%clk 0:30:27]}  Bc5 {[%clk 0:55:21]} 12. Qd3 {[%clk 0:29:04]}  Nf6 {[%clk 0:47:14]}
13. Nb3 {[%clk 0:27:19]}  Bxe3+ {[%clk 0:45:39]} 14. Qxe3 {[%clk 0:27:44]}  O-O {[%clk 0:45:30]} 15. Rae1 {[%clk 0:19:04]}  Rac8 {[%clk 0:42:39]}
16. e5 {[%clk 0:14:47]}  Nd5 {[%clk 0:40:24]} 17. Nxd5 {[%clk 0:14:46]}  Bxd5 {[%clk 0:40:34]} 18. Nd4 {[%clk 0:14:49]}  f6 {[%clk 0:38:40]}
19. c3 {[%clk 0:13:30]}  Qb7 {[%clk 0:33:26]} 20. Qg3 {[%clk 0:12:54]}  fxe5 {[%clk 0:31:11]} 21. fxe5 {[%clk 0:10:22]}  Bc4 {[%clk 0:28:17]}
22. Rxf8+ {[%clk 0:05:21]}  Rxf8 {[%clk 0:28:40]} 23. b3 {[%clk 0:05:29]}  Bd5 {[%clk 0:28:27]} 24. Rf1 {[%clk 0:05:50]}  Rxf1+ {[%clk 0:25:49]}
25. Kxf1 {[%clk 0:06:15]}  Qc7 {[%clk 0:25:24]} 26. Kg1 {[%clk 0:02:41]}  h6 {[%clk 0:22:43]} 27. h4 {[%clk 0:02:53]}  Qa5 {[%clk 0:21:52]}
28. b4 {[%clk 0:03:07]}  Qxa3 {[%clk 0:21:41]} 29. Kh2 {[%clk 0:03:09]}  Qb2 {[%clk 0:19:39]} 30. h5 {[%clk 0:01:53]}  Qd2 {[%clk 0:19:28]}
31. Qg6 {[%clk 0:00:55]}  Qf4+ {[%clk 0:19:10]} 32. Qg3 {[%clk 0:01:00]}  Qe4 {[%clk 0:13:36]} 33. Nf3 {[%clk 0:01:22]}  Qf5 {[%clk 0:13:33]}
34. Qh4 {[%clk 0:00:37]}  Bxf3 {[%clk 0:13:37]} 35. gxf3 {[%clk 0:00:53]}  Qxe5+ {[%clk 0:13:16]} 36. f4 {[%clk 0:00:34]}  Qf6 {[%clk 0:11:18]}
37. Qg3 {[%clk 0:00:34]}  Qf5 {[%clk 0:11:32]} 38. Qh4 {[%clk 0:00:41]}  Kh7 {[%clk 0:11:00]} 39. Kg1 {[%clk 0:00:43]}  e5 {[%clk 0:09:52]} 0-1

[Event "7th Paul Keres Memorial Festival 2026 Classic A"]
[Site "ESTONIA Resort Hotel & Spa conference center, EE"]
[Date "2026.07.31"]
[Round "7"]
[White "De Seroux, Camille"]
[Black "Ostensen, Nicolai Maxime"]
[Result "0-1"]
[Board "6"]
[TimeControl "5400+30"]
[WhiteFideId "1305620"]
[BlackFideId "1546970"]
[WhiteElo "2170"]
[BlackElo "2407"]
[WhiteTitle "WIM"]
[BlackTitle "FM"]
[WhiteClock "0:00:39"]
[BlackClock "0:11:27"]
[Variant "Standard"]
[EndDate "2026.07.31"]
[EndTime "10:35:08"]

1. e4 {[%clk 1:26:53]}  c5 {[%clk 1:30:56]} 2. Nc3 {[%clk 1:26:43]}  a6 {[%clk 1:31:21]} 3. d4 {[%clk 1:22:15]}  cxd4 {[%clk 1:31:46]}
4. Qxd4 {[%clk 1:22:40]}  Nc6 {[%clk 1:30:02]} 5. Qd3 {[%clk 1:22:54]}  b5 {[%clk 1:27:43]} 6. Be2 {[%clk 1:13:04]}  e6 {[%clk 1:27:25]}
7. Bf4 {[%clk 1:09:47]}  Nf6 {[%clk 1:18:37]} 8. Bf3 {[%clk 0:54:12]}  b4 {[%clk 1:04:22]} 9. Nd5 {[%clk 0:46:12]}  d6 {[%clk 1:03:40]}
10. Nxf6+ {[%clk 0:39:33]}  gxf6 {[%clk 1:03:47]} 11. O-O-O {[%clk 0:35:43]}  Ne5 {[%clk 1:03:45]} 12. Qb3 {[%clk 0:31:28]}  a5 {[%clk 1:02:30]}
13. Be2 {[%clk 0:28:08]}  Bd7 {[%clk 1:02:01]} 14. Bg3 {[%clk 0:23:29]}  Rb8 {[%clk 0:58:54]} 15. f4 {[%clk 0:22:49]}  a4 {[%clk 0:59:11]}
16. Qe3 {[%clk 0:23:00]}  Nc6 {[%clk 0:56:58]} 17. Nf3 {[%clk 0:22:44]}  Qb6 {[%clk 0:39:08]} 18. Qd2 {[%clk 0:19:57]}  b3 {[%clk 0:22:34]}
19. cxb3 {[%clk 0:18:45]}  Nb4 {[%clk 0:20:15]} 20. Kb1 {[%clk 0:12:55]}  Nxa2 {[%clk 0:18:33]} 21. bxa4 {[%clk 0:08:52]}  Qb3 {[%clk 0:16:14]}
22. Bb5 {[%clk 0:04:43]}  Bxb5 {[%clk 0:16:32]} 23. axb5 {[%clk 0:04:58]}  Rxb5 {[%clk 0:14:08]} 24. Rc1 {[%clk 0:01:51]}  Nxc1 {[%clk 0:14:16]}
25. Rxc1 {[%clk 0:02:03]}  Rc5 {[%clk 0:13:28]} 26. Rxc5 {[%clk 0:01:02]}  dxc5 {[%clk 0:13:53]} 27. Bh4 {[%clk 0:01:03]}  Be7 {[%clk 0:13:25]}
28. e5 {[%clk 0:01:02]}  fxe5 {[%clk 0:12:24]} 29. Nxe5 {[%clk 0:00:52]}  Qd5 {[%clk 0:11:25]} 30. Qe1 {[%clk 0:00:34]}  f6 {[%clk 0:11:02]}
31. Ng4 {[%clk 0:00:39]}  Qf5+ {[%clk 0:11:27]} 0-1